[Event "FIDE WCCC Open-10 2024"]
[Site "Montesilvano"]
[Date "2024.11.22"]
[Round "7.5"]
[White "Fuentes de Nova, Sebastian"]
[Black "Zuo, Junyu"]
[Result "1/2-1/2"]
[Annotator "RC"]
[ECO "D10"]
[WhiteElo "1929"]
[BlackElo "2120"]
[PlyCount "100"]
[EventDate "2024.11.18"]
[EventType "swiss"]
[EventCountry "ITA"]
[SourceTitle "playchess.com"]
[Source "ChessBase"]
[SourceQuality "1"]
[TimeControl "5400+30"]

1. d4 {[%emt 0:00:34]} d5 {[%emt 0:00:33]} 2. c4 {[%emt 0:00:17]} c6 {[%emt 0:00:17]} 3. Nc3 {[%emt 0:00:20]} Nf6 {[%emt 0:01:01]} 4. cxd5 {[%emt 0:00:07]} cxd5 {[%emt 0:00:03]} 5. Bg5 {[%emt 0:00:13]} Ne4 {[%emt 0:00:54]} 6. Nxe4 {[%emt 0:00:15]} dxe4 {[%emt 0:00:06]} 7. Qd2 {[%emt 0:00:29]} Qd5 {[%emt 0:01:58]} 8. Bf4 {[%emt 0:01:09]} Nc6 {[%emt 0:00:56]} 9. a3 {[%emt 0:11:05]} Na5 {[%emt 0:10:17]} 10. Qc3 {[%emt 0:16:59]} Nb3 {[%emt 0:00:27]} 11. Rd1 {[%emt 0:00:18]} Bd7 {[%emt 0:00:31]} 12. e3 {[%emt 0:17:04]} Rc8 {[%emt 0:00:54]} 13. Bc7 {[%emt 0:01:30]} e6 {[%emt 0:17:44]} 14. Bc4 {[%emt 0:02:40]} Rxc7 {[%emt 0:31:53]} 15. Bxb3 {[%emt 0:07:21]} Rxc3 {[%emt 0:00:50]} 16. Bxd5 {[%emt 0:00:13]} Rc2 {[%emt 0:00:11]} 17. Bxe4 {[%emt 0:03:25]} Rxb2 {[%emt 0:00:10]} 18. Nf3 {[%emt 0:00:05]} Bb5 {[%emt 0:14:53]} 19. Bd3 {[%emt 0:02:39]} Bxd3 {[%emt 0:03:03]} 20. Rxd3 {[%emt 0:00:08]} Bxa3 {[%emt 0:00:07]} 21. Rxa3 {[%emt 0:06:19]} Rb1+ {[%emt 0:00:06]} 22. Ke2 {[%emt 0:00:10]} Rxh1 {[%emt 0:00:06]} 23. Rxa7 {[%emt 0:00:05]} O-O {[%emt 0:00:17]} 24. Rxb7 {[%emt 0:00:07]} Ra1 {[%emt 0:04:17]} 25. Ne5 {[%emt 0:01:23]} f6 {[%emt 0:01:18]} 26. Nd7 {[%emt 0:02:10]} Rc8 {[%emt 0:01:30]} 27. Nc5 {[%emt 0:03:11]} e5 {[%emt 0:01:26]} 28. Ne6 {[%emt 0:05:16]} e4 {[%emt 0:02:59]} 29. Rxg7+ {[%emt 0:00:48]} Kh8 {[%emt 0:00:49]} 30. Rc7 {[%emt 0:00:11]} Ra2+ {[%emt 0:01:05]} 31. Ke1 {[%emt 0:00:12]} Rb8 {[%emt 0:00:10]} 32. Rc1 {[%emt 0:00:35]} Kg8 {[%emt 0:00:43]} 33. Nf4 {[%emt 0:02:37]} Rbb2 {[%emt 0:01:18]} 34. Nh3 {[%emt 0:00:34]} Kf7 {[%emt 0:00:08]} 35. Kf1 {[%emt 0:00:50]} Kg6 {[%emt 0:00:34]} 36. Kg1 {[%emt 0:02:28]} Kf5 {[%emt 0:00:50]} 37. Rf1 {[%emt 0:01:35]} h5 {[%emt 0:00:44]} 38. Nf4 {[%emt 0:01:40]} h4 {[%emt 0:00:25]} 39. Rc1 {[%emt 0:02:41]} Rc2 {[%emt 0:00:25]} 40. Rb1 {[%emt 0:01:43]} Kg5 {[%emt 0:00:36]} 41. Rf1 {[%emt 0:00:43]} Kh6 {[%emt 0:00:16]} 42. h3 {[%emt 0:01:48]} f5 {[%emt 0:00:10]} 43. Nd5 {[%emt 0:00:13]} Rab2 {[%emt 0:00:15]} 44. Nf4 {[%emt 0:00:20]} Kg7 {[%emt 0:01:00]} 45. Nd5 {[%emt 0:00:16]} Kf7 {[%emt 0:00:07]} 46. Nf4 {[%emt 0:00:08]} Rd2 {[%emt 0:00:13]} 47. Nd5 {[%emt 0:00:20]} Rb5 {[%emt 0:00:09]} 48. Nf4 {[%emt 0:00:12]} Rbb2 {[%emt 0:00:10]} 49. Nd5 {[%emt 0:00:06]} Ke6 {[%emt 0:00:26]} 50. Nf4+ {[%emt 0:00:06]} Kf7 {[%emt 0:00:46]} 1/2-1/2

[Event "FIDE WCCC Open-10 2024"]
[Site "Montesilvano"]
[Date "2024.11.22"]
[Round "7.5"]
[White "Santoro, Marco Antonio"]
[Black "Della Penna, Leonardo"]
[Result "1/2-1/2"]
[Annotator "NA RC"]
[ECO "D02"]
[WhiteElo "1765"]
[BlackElo "1675"]
[PlyCount "44"]
[EventDate "2024.11.18"]
[EventType "swiss"]
[EventCountry "ITA"]
[SourceTitle "playchess.com"]
[Source "ChessBase"]
[SourceQuality "1"]
[TimeControl "5400+30"]

1. d4 {[%emt 0:00:04]} d5 {[%emt 0:00:19]} 2. Nf3 {[%emt 0:00:46]} Nf6 {[%emt 0:00:44]} 3. Bf4 {[%emt 0:00:30]} Bf5 {[%emt 0:00:52]} 4. e3 {[%emt 0:01:15]} e6 {[%emt 1:30:35]} 5. Bd3 {[%emt 0:01:33]} Bxd3 {[%emt 0:00:00]} 6. cxd3 {[%emt 0:01:43]} Bd6 {[%emt 0:00:00]} 7. Bxd6 {[%emt 0:01:50]} cxd6 {[%emt 0:00:00]} 8. Nc3 {[%emt 0:01:08]} a6 {[%emt 0:00:00]} 9. O-O {[%emt 0:00:52]} O-O {[%emt 0:00:00]} 10. Qa4 {[%emt 0:01:33]} Qd7 {[%emt 0:00:00]} 11. Qxd7 {[%emt 0:00:30]} Nbxd7 {[%emt 0:00:00]} 12. Rac1 {[%emt 0:00:32]} Rac8 {[%emt 0:00:00]} 13. Ne2 {[%emt 0:01:06]} Nb6 {[%emt 0:00:00]} 14. Rfd1 {[%emt 0:00:43]} Rxc1 {[%emt 0:00:00]} 15. Rxc1 {[%emt 0:00:07]} Rc8 {[%emt 0:00:00]} 16. Rxc8+ {[%emt 0:00:31]} Nxc8 {[%emt 0:00:00]} 17. h3 {[%emt 0:00:14]} Kf8 {[%emt 0:00:00]} 18. Kf1 {[%emt 0:00:39]} b5 {[%emt 0:00:00]} 19. Nd2 {[%emt 0:00:40]} Ke7 {[%emt 0:00:00]} 20. f4 {[%emt 0:00:12]} Nb6 {[%emt 0:00:00]} 21. b3 {[%emt 0:00:20]} h6 {[%emt 0:00:00]} 22. Ke1 {[%emt 0:01:53]} Kd7 {[%emt 0:00:00]} 1/2-1/2

[Event "FIDE WCCC Open-10 2024"]
[Site "Montesilvano"]
[Date "2024.11.22"]
[Round "7.6"]
[White "Meitzner, Jonathan Franz"]
[Black "Zhu, Linxi"]
[Result "0-1"]
[Annotator "RC"]
[ECO "D00"]
[WhiteElo "1876"]
[BlackElo "2100"]
[PlyCount "104"]
[EventDate "2024.11.18"]
[EventType "swiss"]
[EventCountry "ITA"]
[SourceTitle "playchess.com"]
[Source "ChessBase"]
[SourceQuality "1"]
[TimeControl "5400+30"]

1. d4 {[%emt 0:00:07]} Nf6 {[%emt 0:00:04]} 2. Bf4 {[%emt 0:00:12]} d5 {[%emt 0:00:16]} 3. e3 {[%emt 0:00:44]} c5 {[%emt 0:00:13]} 4. c3 {[%emt 0:00:23]} Qb6 {[%emt 0:01:01]} 5. Qb3 {[%emt 0:01:19]} c4 {[%emt 0:00:18]} 6. Qc2 {[%emt 0:00:17]} g6 {[%emt 0:00:03]} 7. Nf3 {[%emt 0:00:13]} Bf5 {[%emt 0:00:26]} 8. Qc1 {[%emt 0:01:01]} Bg7 {[%emt 0:00:17]} 9. Nbd2 {[%emt 0:01:36]} O-O {[%emt 0:01:06]} 10. Be2 {[%emt 0:00:21]} Nc6 {[%emt 0:01:13]} 11. O-O {[%emt 0:00:35]} Rac8 {[%emt 0:04:02]} 12. Re1 {[%emt 0:04:09]} Nd7 {[%emt 0:02:27]} 13. e4 {[%emt 0:10:31]} dxe4 {[%emt 0:00:48]} 14. Nxc4 {[%emt 0:01:19]} Qd8 {[%emt 0:00:13]} 15. Nfd2 {[%emt 0:03:49]} b5 {[%emt 0:00:34]} 16. d5 {[%emt 0:02:47]} bxc4 {[%emt 0:07:04]} 17. dxc6 {[%emt 0:01:18]} Rxc6 {[%emt 0:00:06]} 18. Nxc4 {[%emt 0:09:09]} e5 {[%emt 0:05:11]} 19. Be3 {[%emt 0:07:46]} Be6 {[%emt 0:00:12]} 20. Na3 {[%emt 0:01:09]} a6 {[%emt 0:01:38]} 21. Nc2 {[%emt 0:01:13]} a5 {[%emt 0:01:11]} 22. Bb5 {[%emt 0:01:00]} Rc8 {[%emt 0:00:06]} 23. Qd2 {[%emt 0:09:30]} Qc7 {[%emt 0:02:05]} 24. Bh6 {[%emt 0:03:06]} Nc5 {[%emt 0:02:07]} 25. Bxg7 {[%emt 0:05:11]} Kxg7 {[%emt 0:00:22]} 26. Qe2 {[%emt 0:01:14]} Rfd8 {[%emt 0:01:50]} 27. Rad1 {[%emt 0:01:58]} f5 {[%emt 0:01:06]} 28. Na3 {[%emt 0:08:58]} a4 {[%emt 0:02:15]} 29. Bc4 {[%emt 0:01:57]} Bxc4 {[%emt 0:00:27]} 30. Qxc4 {[%emt 0:00:06]} Nd3 {[%emt 0:00:03]} 31. Qxc7+ {[%emt 0:00:35]} Rxc7 {[%emt 0:00:04]} 32. Re2 {[%emt 0:00:40]} Rb8 {[%emt 0:02:07]} 33. Rb1 {[%emt 0:05:44]} Rd7 {[%emt 0:05:38]} 34. Rd2 {[%emt 0:02:09]} Kf6 {[%emt 0:00:08]} 35. h3 {[%emt 0:02:15]} Ke6 {[%emt 1:01:19]} 36. Rc2 {[%emt 0:04:06]} Rdb7 {[%emt 0:00:00]} 37. Nc4 {[%emt 0:00:56]} Kd5 {[%emt 0:00:00]} 38. Ne3+ {[%emt 0:00:08]} Kc5 {[%emt 0:00:00]} 39. Nd1 {[%emt 0:00:18]} h5 {[%emt 0:00:00]} 40. Rd2 {[%emt 0:02:14]} Kc6 {[%emt 0:00:00]} 41. f3 {[%emt 0:01:58]} Nc5 {[%emt 0:00:00]} 42. fxe4 {[%emt 0:01:20]} Nxe4 {[%emt 0:00:00]} 43. Rd3 {[%emt 0:00:32]} Nc5 {[%emt 0:00:00]} 44. Rg3 {[%emt 0:00:07]} Rg7 {[%emt 0:00:00]} 45. c4 {[%emt 0:01:56]} f4 {[%emt 0:00:00]} 46. Rf3 {[%emt 0:01:51]} g5 {[%emt 0:00:00]} 47. Ra3 {[%emt 0:01:06]} Rgb7 {[%emt 0:00:00]} 48. Kf2 {[%emt 0:00:51]} Rb4 {[%emt 0:00:00]} 49. Rc1 {[%emt 0:00:48]} e4 {[%emt 0:00:00]} 50. Ke2 {[%emt 0:00:56]} g4 {[%emt 0:00:00]} 51. hxg4 {[%emt 0:00:54]} hxg4 {[%emt 0:00:00]} 52. g3 {[%emt 0:01:24]} Nd3 {[%emt 0:00:00]} 0-1

[Event "FIDE WCCC Open-10 2024"]
[Site "Montesilvano"]
[Date "2024.11.22"]
[Round "7.7"]
[White "Zhang, Junyi"]
[Black "Li, Weilong"]
[Result "1-0"]
[Annotator "NA RC"]
[ECO "C02"]
[WhiteElo "2061"]
[BlackElo "1735"]
[PlyCount "221"]
[EventDate "2024.11.18"]
[EventType "swiss"]
[EventCountry "ITA"]
[SourceTitle "playchess.com"]
[Source "ChessBase"]
[SourceQuality "1"]
[TimeControl "5400+30"]

1. e4 {[%emt 0:00:03]} e6 {[%emt 0:00:04]} 2. d4 {[%emt 0:00:00]} d5 {[%emt 0:00:05]} 3. e5 {[%emt 0:00:01]} c5 {[%emt 0:00:06]} 4. c3 {[%emt 0:00:02]} Nc6 {[%emt 0:00:04]} 5. Nf3 {[%emt 0:00:01]} Bd7 {[%emt 0:00:04]} 6. Be2 {[%emt 0:00:13]} Rc8 {[%emt 0:00:04]} 7. O-O {[%emt 0:00:26]} a6 {[%emt 0:00:03]} 8. a3 {[%emt 0:01:00]} Nge7 {[%emt 0:02:20]} 9. dxc5 {[%emt 0:14:59]} Ng6 {[%emt 0:05:35]} 10. b4 {[%emt 0:00:43]} Ngxe5 {[%emt 0:00:19]} 11. Nd4 {[%emt 0:03:19]} Be7 {[%emt 0:02:49]} 12. Be3 {[%emt 0:04:04]} O-O $11 {[%emt 0:02:21]} 13. Nd2 {[%emt 0:01:59]} Ng6 {[%emt 0:03:05]} 14. f4 {[%emt 0:07:30]} e5 {[%emt 0:06:21]} 15. Nxc6 {[%emt 0:04:30]} Bxc6 {[%emt 0:00:14]} 16. fxe5 {[%emt 0:00:30]} Nxe5 {[%emt 0:04:52]} 17. Nf3 {[%emt 0:04:05]} Nxf3+ {[%emt 0:04:23]} 18. Bxf3 {[%emt 0:00:06]} Qd7 {[%emt 0:03:39]} 19. Qd2 {[%emt 0:08:51]} Rcd8 {[%emt 0:03:07]} 20. Bd4 {[%emt 0:02:04]} f5 {[%emt 0:02:41]} 21. Rae1 {[%emt 0:02:47]} Bb5 {[%emt 0:01:18]} 22. Bxd5+ {[%emt 0:04:09]} Qxd5 {[%emt 0:00:05]} 23. Rxe7 {[%emt 0:00:12]} Rd7 {[%emt 0:02:49]} 24. Rfe1 {[%emt 0:03:50]} f4 {[%emt 0:02:27]} 25. Rxd7 {[%emt 0:05:18]} Qxd7 {[%emt 0:02:06]} 26. Qa2+ {[%emt 0:01:15]} Rf7 {[%emt 0:00:13]} 27. Qe6 {[%emt 0:06:25]} Qxe6 {[%emt 0:01:50]} 28. Rxe6 {[%emt 0:00:03]} f3 {[%emt 0:00:09]} 29. g3 {[%emt 0:01:30]} Rd7 {[%emt 0:02:01]} 30. Kf2 {[%emt 0:00:38]} Kf7 {[%emt 0:00:29]} 31. Re1 {[%emt 0:05:09]} Be2 {[%emt 0:00:09]} 32. a4 {[%emt 0:00:42]} Re7 {[%emt 0:03:37]} 33. Be3 {[%emt 0:11:10]} Re4 {[%emt 0:02:38]} 34. Rb1 {[%emt 0:02:06]} Ke6 {[%emt 0:00:33]} 35. Rb2 {[%emt 0:01:01]} Bd1 {[%emt 0:01:32]} 36. b5 {[%emt 0:02:40]} Rxa4 {[%emt 0:03:47]} 37. c6 {[%emt 0:00:25]} b6 {[%emt 0:02:53]} 38. c7 {[%emt 0:03:32]} Rc4 {[%emt 0:00:08]} 39. bxa6 {[%emt 0:00:15]} Rxc7 {[%emt 0:00:38]} 40. Rxb6+ {[%emt 0:00:30]} Kd7 {[%emt 0:00:16]} 41. Rb2 {[%emt 0:00:46]} Ba4 {[%emt 0:00:54]} 42. Kxf3 {[%emt 0:01:28]} Rxc3 {[%emt 0:00:38]} 43. a7 {[%emt 0:00:56]} Bc6+ {[%emt 0:00:04]} 44. Kf2 {[%emt 0:00:09]} Ra3 {[%emt 0:00:09]} 45. Rd2+ {[%emt 0:00:46]} Ke8 {[%emt 0:00:49]} 46. Bc5 {[%emt 0:00:23]} Ra4 {[%emt 0:00:15]} 47. Re2+ {[%emt 0:00:17]} Kf7 {[%emt 0:00:59]} 48. Re7+ {[%emt 0:00:16]} Kf6 {[%emt 0:00:04]} 49. Rc7 {[%emt 0:00:20]} Bd5 {[%emt 0:00:09]} 50. Ke3 {[%emt 0:00:29]} g6 {[%emt 0:02:46]} 51. Rxh7 {[%emt 0:00:34]} Re4+ {[%emt 0:00:33]} 52. Kd3 {[%emt 0:00:13]} Ra4 {[%emt 0:00:07]} 53. Rd7 {[%emt 0:00:33]} Bh1 {[%emt 0:00:23]} 54. Kc3 {[%emt 0:00:47]} Ra5 {[%emt 0:00:53]} 55. Kb4 {[%emt 0:00:38]} Ra2 {[%emt 0:00:07]} 56. Rd1 {[%emt 0:00:18]} Bg2 {[%emt 0:00:18]} 57. Kb5 {[%emt 0:00:51]} g5 {[%emt 0:00:56]} 58. Kb6 {[%emt 0:00:38]} g4 {[%emt 0:00:08]} 59. Kc7 {[%emt 0:00:37]} Rc2 {[%emt 0:01:01]} 60. Kd6 {[%emt 0:00:40]} Ra2 {[%emt 0:00:15]} 61. Bd4+ {[%emt 0:00:37]} Kf5 {[%emt 0:00:52]} 62. Ra1 {[%emt 0:00:30]} Rd2 {[%emt 0:00:11]} 63. Kc5 {[%emt 0:01:11]} Rc2+ {[%emt 0:00:05]} 64. Kb4 {[%emt 0:00:00]} Rc8 {[%emt 0:00:08]} 65. Bc5 {[%emt 0:01:00]} Bf3 {[%emt 0:00:09]} 66. Bd6 {[%emt 0:00:00]} Ba8 {[%emt 0:00:17]} 67. Rf1+ {[%emt 0:00:00]} Ke6 {[%emt 0:00:19]} 68. Bb8 {[%emt 0:00:00]} Kd5 {[%emt 0:00:13]} 69. Rf5+ {[%emt 0:00:00]} Ke6 {[%emt 0:00:47]} 70. Rg5 {[%emt 0:00:19]} Rh8 {[%emt 0:00:07]} 71. Rxg4 {[%emt 0:00:18]} Rxh2 {[%emt 0:00:06]} 72. Bf4 {[%emt 0:00:23]} Rb2+ {[%emt 0:00:07]} 73. Ka3 {[%emt 0:00:07]} Rb1 {[%emt 0:00:49]} 74. Be3 {[%emt 0:00:25]} Ra1+ {[%emt 0:00:14]} 75. Kb2 {[%emt 0:00:05]} Ra5 {[%emt 0:00:06]} 76. Rg8 {[%emt 0:00:34]} Bd5 {[%emt 0:00:40]} 77. Rd8 {[%emt 0:01:16]} Ra2+ {[%emt 0:00:09]} 78. Kb1 {[%emt 0:00:16]} Ra3 {[%emt 0:00:42]} 79. g4 {[%emt 0:00:57]} Be4+ {[%emt 0:00:27]} 80. Kb2 {[%emt 0:00:34]} Rxe3 {[%emt 0:01:42]} 81. Re8+ {[%emt 0:00:27]} Kf6 {[%emt 0:00:05]} 82. Rxe4 {[%emt 0:00:05]} Rxe4 {[%emt 0:00:02]} 83. a8=Q {[%emt 0:00:25]} Rxg4 {[%emt 0:00:04]} 84. Qf8+ {[%emt 0:00:10]} Ke5 {[%emt 0:00:10]} 85. Kc3 {[%emt 0:00:13]} Rg3+ {[%emt 0:00:10]} 86. Kc4 {[%emt 0:00:15]} Rg4+ {[%emt 0:00:06]} 87. Kc5 {[%emt 0:00:04]} Re4 {[%emt 0:00:26]} 88. Qf7 {[%emt 0:00:15]} Re3 {[%emt 0:00:27]} 89. Qe7+ {[%emt 0:00:08]} Kf4 {[%emt 0:00:03]} 90. Qd6+ {[%emt 0:00:17]} Ke4 {[%emt 0:00:06]} 91. Qd5+ {[%emt 0:00:11]} Kf4 {[%emt 0:00:03]} 92. Kd4 {[%emt 0:00:06]} Rf3 {[%emt 0:00:06]} 93. Qh5 {[%emt 0:00:27]} Rg3 {[%emt 0:00:05]} 94. Qf7+ {[%emt 0:00:20]} Kg4 {[%emt 0:00:14]} 95. Ke4 {[%emt 0:00:28]} Kh3 {[%emt 0:00:09]} 96. Qh5+ {[%emt 0:00:21]} Kg2 {[%emt 0:00:13]} 97. Kf4 {[%emt 0:00:39]} Rh3 {[%emt 0:00:21]} 98. Qe2+ {[%emt 0:00:11]} Kg1 {[%emt 0:00:29]} 99. Qe1+ {[%emt 0:00:18]} Kg2 {[%emt 0:00:12]} 100. Qd2+ {[%emt 0:00:04]} Kg1 {[%emt 0:00:24]} 101. Kg4 {[%emt 0:00:30]} Rh2 {[%emt 0:00:07]} 102. Qd1+ {[%emt 0:01:17]} Kf2 {[%emt 0:00:55]} 103. Qd2+ {[%emt 0:00:43]} Kg1 {[%emt 0:00:07]} 104. Qe1+ {[%emt 0:01:11]} Kg2 {[%emt 0:00:14]} 105. Qe5 {[%emt 0:00:17]} Kg1 {[%emt 0:00:11]} 106. Qe4 {[%emt 0:00:24]} Rg2+ {[%emt 0:00:06]} 107. Kh3 {[%emt 0:00:30]} Rh2+ {[%emt 0:02:21]} 108. Kg3 {[%emt 0:00:07]} Rf2 {[%emt 0:00:09]} 109. Qe3 {[%emt 0:00:16]} Kh1 {[%emt 0:00:05]} 110. Qe1+ {[%emt 0:00:04]} Rf1 {[%emt 0:00:03]} 111. Qxf1# {[%emt 0:07:03]} 1-0

[Event "FIDE WCCC Open-10 2024"]
[Site "Montesilvano"]
[Date "2024.11.22"]
[Round "7.7"]
[White "Schettini Acuna, Massimo Matteo"]
[Black "Yrysov, Timur"]
[Result "0-1"]
[Annotator "NA RC"]
[ECO "B56"]
[WhiteElo "1703"]
[BlackElo "1604"]
[PlyCount "134"]
[EventDate "2024.11.18"]
[EventType "swiss"]
[EventCountry "ITA"]
[SourceTitle "playchess.com"]
[Source "ChessBase"]
[SourceQuality "1"]
[TimeControl "5400+30"]

1. e4 {[%emt 0:00:03]} c5 {[%emt 0:00:26]} 2. Nf3 {[%emt 0:00:09]} d6 {[%emt 0:00:35]} 3. d4 {[%emt 0:00:11]} cxd4 {[%emt 0:00:39]} 4. Nxd4 {[%emt 0:00:12]} Nf6 {[%emt 0:00:32]} 5. Nc3 {[%emt 0:00:22]} e5 {[%emt 0:00:49]} 6. Bb5+ {[%emt 0:00:09]} Nbd7 {[%emt 0:00:58]} 7. Nde2 {[%emt 0:00:24]} a6 {[%emt 0:00:58]} 8. Bxd7+ {[%emt 0:00:08]} Bxd7 {[%emt 0:02:35]} 9. Bg5 {[%emt 0:02:19]} Be7 {[%emt 0:00:58]} 10. Bxf6 {[%emt 0:00:28]} gxf6 {[%emt 0:02:02]} 11. Ng3 {[%emt 0:07:11]} Rc8 {[%emt 0:03:44]} 12. O-O {[%emt 0:04:39]} b5 {[%emt 0:12:08]} 13. Nd5 {[%emt 0:03:49]} Be6 {[%emt 0:01:03]} 14. b4 {[%emt 0:07:30]} Bxd5 {[%emt 0:03:33]} 15. Qxd5 {[%emt 0:00:30]} Qc7 {[%emt 0:21:17]} 16. h3 {[%emt 0:07:01]} Qc6 {[%emt 0:05:48]} 17. Qxc6+ {[%emt 0:02:39]} Rxc6 {[%emt 0:00:08]} 18. Rac1 {[%emt 0:01:30]} Kd7 {[%emt 0:01:24]} 19. Rfd1 {[%emt 0:02:07]} Rhc8 {[%emt 0:01:05]} 20. Rd2 {[%emt 0:01:32]} Rc4 {[%emt 0:03:14]} 21. c3 {[%emt 0:21:04]} Rxc3 {[%emt 0:04:00]} 22. Rxc3 {[%emt 0:00:14]} Rxc3 {[%emt 0:00:07]} 23. f3 {[%emt 0:00:43]} Rc4 {[%emt 0:00:57]} 24. a3 {[%emt 0:01:55]} Rc3 {[%emt 0:02:12]} 25. Ra2 {[%emt 0:00:38]} Bd8 {[%emt 0:01:04]} 26. Nf5 {[%emt 0:01:58]} Bb6+ {[%emt 0:00:57]} 27. Kf1 {[%emt 0:01:00]} Rc1+ {[%emt 0:02:10]} 28. Ke2 {[%emt 0:00:42]} Rg1 {[%emt 0:00:21]} 29. Kd3 {[%emt 0:02:50]} Rc1 {[%emt 0:01:01]} 30. a4 {[%emt 0:01:29]} Rb1 {[%emt 0:06:37]} 31. axb5 {[%emt 0:01:35]} axb5 {[%emt 0:00:13]} 32. Ra6 {[%emt 0:00:59]} Bc7 {[%emt 0:01:05]} 33. Kc3 {[%emt 0:01:28]} Rc1+ {[%emt 0:00:38]} 34. Kb2 {[%emt 0:00:56]} Rg1 {[%emt 0:01:29]} 35. Ne3 {[%emt 0:01:08]} Re1 {[%emt 0:00:23]} 36. Nf5 {[%emt 0:02:29]} Re2+ {[%emt 0:00:44]} 37. Kc3 {[%emt 0:00:58]} Rxg2 {[%emt 0:03:16]} 38. Ra7 {[%emt 0:01:57]} Rf2 {[%emt 0:02:11]} 39. Nh4 {[%emt 0:03:08]} Rh2 {[%emt 0:00:18]} 40. Ra8 {[%emt 0:01:25]} Rxh3 {[%emt 0:00:38]} 41. Nf5 {[%emt 0:00:24]} Rxf3+ {[%emt 0:00:20]} 42. Kc2 {[%emt 0:00:31]} h5 {[%emt 0:02:11]} 43. Rf8 {[%emt 0:00:33]} Rf2+ {[%emt 0:07:38]} 44. Kd3 {[%emt 0:00:46]} Rh2 {[%emt 0:03:42]} 45. Rxf7+ {[%emt 0:00:14]} Kc8 {[%emt 0:00:20]} 46. Rxf6 {[%emt 0:00:41]} Rh1 {[%emt 0:05:02]} 47. Kd2 {[%emt 0:00:47]} h4 {[%emt 0:00:00]} 48. Nxd6+ {[%emt 0:00:34]} Bxd6 {[%emt 0:00:00]} 49. Rxd6 {[%emt 0:00:06]} h3 {[%emt 0:00:00]} 50. Rh6 {[%emt 0:00:56]} h2 {[%emt 0:00:00]} 51. Ke2 {[%emt 0:00:35]} Ra1 {[%emt 0:00:00]} 52. Rh8+ {[%emt 0:00:56]} Kd7 {[%emt 0:00:00]} 53. Rh7+ {[%emt 0:00:25]} Ke8 {[%emt 0:00:00]} 54. Rh8+ {[%emt 0:00:37]} Kf7 {[%emt 0:00:00]} 55. Rh7+ {[%emt 0:00:46]} Kg8 {[%emt 0:00:00]} 56. Rxh2 {[%emt 0:01:05]} Ra2+ {[%emt 0:00:00]} 57. Kf3 {[%emt 0:00:05]} Rxh2 {[%emt 0:00:00]} 58. Kg4 {[%emt 0:00:05]} Rb2 {[%emt 0:00:00]} 59. Kf5 {[%emt 0:00:08]} Rxb4 {[%emt 0:00:00]} 60. Kxe5 {[%emt 0:00:09]} Rc4 {[%emt 0:00:00]} 61. Kd5 {[%emt 0:00:32]} Rc1 {[%emt 0:00:00]} 62. e5 {[%emt 0:00:30]} b4 {[%emt 0:00:00]} 63. e6 {[%emt 0:00:08]} b3 {[%emt 0:00:00]} 64. e7 {[%emt 0:00:10]} Re1 {[%emt 0:00:02]} 65. e8=N {[%emt 0:00:34]} Rxe8 {[%emt 0:00:49]} 66. Kc4 {[%emt 0:00:07]} b2 {[%emt 0:00:23]} 67. Kc3 {[%emt 0:00:03]} b1=Q {[%emt 0:00:11]} 0-1

[Event "FIDE WCCC Open-10 2024"]
[Site "Montesilvano"]
[Date "2024.11.22"]
[Round "7.8"]
[White "Perez Solanas, Hugo"]
[Black "Xia, Joshua"]
[Result "0-1"]
[Annotator "NA RC"]
[ECO "B90"]
[WhiteElo "1824"]
[BlackElo "2052"]
[PlyCount "92"]
[EventDate "2024.11.18"]
[EventType "swiss"]
[EventCountry "ITA"]
[SourceTitle "playchess.com"]
[Source "ChessBase"]
[SourceQuality "1"]
[TimeControl "5400+30"]

1. e4 {[%emt 0:00:03]} c5 {[%emt 0:00:03]} 2. Nf3 {[%emt 0:00:12]} d6 {[%emt 0:00:04]} 3. d4 {[%emt 0:00:11]} cxd4 {[%emt 0:00:09]} 4. Nxd4 {[%emt 0:00:09]} Nf6 {[%emt 0:00:05]} 5. Nc3 {[%emt 0:00:14]} a6 {[%emt 0:00:11]} 6. f3 {[%emt 0:00:08]} e5 {[%emt 0:00:07]} 7. Nb3 {[%emt 0:00:09]} h5 {[%emt 0:00:20]} 8. Be3 {[%emt 0:00:23]} Be6 {[%emt 0:00:09]} 9. Nd5 {[%emt 0:00:47]} Nbd7 {[%emt 0:01:01]} 10. Qd2 {[%emt 0:00:51]} Bxd5 {[%emt 0:02:22]} 11. exd5 {[%emt 0:00:12]} Nb6 {[%emt 0:01:32]} 12. c4 {[%emt 0:00:50]} g6 {[%emt 0:05:21]} 13. Qb4 {[%emt 0:07:34]} Nfd7 {[%emt 0:00:52]} 14. Bd3 {[%emt 0:03:38]} Qc7 {[%emt 0:12:04]} 15. O-O {[%emt 0:05:05]} Bg7 {[%emt 0:05:51]} 16. Bg5 $14 {[%emt 0:09:46]} (16. a4 $16) 16... Nc5 {[%emt 0:02:04]} 17. Nxc5 {[%emt 0:02:32]} Qxc5+ {[%emt 0:02:26]} 18. Qxc5 {[%emt 0:00:14]} dxc5 {[%emt 0:00:07]} 19. Rfe1 {[%emt 0:05:18]} Kd7 {[%emt 0:08:12]} 20. Rab1 {[%emt 0:14:10]} Kc7 {[%emt 0:24:01]} 21. Bd2 {[%emt 0:06:48]} Nd7 {[%emt 0:02:50]} 22. a4 {[%emt 0:04:16]} a5 {[%emt 0:00:39]} 23. Bc3 {[%emt 0:00:47]} b6 {[%emt 0:00:56]} 24. Rbd1 {[%emt 0:02:14]} Kd6 {[%emt 0:00:55]} 25. Re2 {[%emt 0:06:55]} Rae8 {[%emt 0:03:12]} 26. h3 {[%emt 0:08:19]} Re7 {[%emt 0:03:48]} 27. Rde1 {[%emt 0:00:56]} f5 {[%emt 0:00:32]} 28. b3 {[%emt 0:05:03]} h4 {[%emt 0:02:51]} 29. Bd2 {[%emt 0:02:22]} Bh6 {[%emt 0:03:21]} 30. Bxh6 {[%emt 0:02:12]} Rxh6 {[%emt 0:00:09]} 31. Kf2 {[%emt 0:00:46]} Nf6 {[%emt 0:00:48]} 32. f4 {[%emt 0:03:06]} e4 {[%emt 0:00:16]} 33. Bc2 {[%emt 0:00:08]} Nh5 {[%emt 0:01:05]} 34. Ke3 {[%emt 0:00:19]} g5 {[%emt 0:00:54]} 35. fxg5 {[%emt 0:00:25]} Rg6 {[%emt 0:00:14]} 36. Rf2 {[%emt 0:02:12]} Rxg5 {[%emt 0:00:26]} 37. Ref1 {[%emt 0:02:54]} f4+ {[%emt 0:00:25]} 38. Rxf4 {[%emt 0:00:34]} Rg3+ {[%emt 0:00:22]} 39. Ke2 {[%emt 0:01:30]} Nxf4+ {[%emt 0:00:14]} 40. Rxf4 {[%emt 0:00:09]} Rxg2+ {[%emt 0:00:09]} 41. Kd1 {[%emt 0:00:10]} e3 {[%emt 0:00:23]} 42. Be4 {[%emt 0:00:26]} Rd2+ {[%emt 0:00:18]} 43. Ke1 {[%emt 0:00:30]} Rd4 {[%emt 0:00:08]} 44. Rf6+ {[%emt 0:00:29]} Ke5 {[%emt 0:00:17]} 45. d6 {[%emt 0:00:26]} Kxf6 {[%emt 0:00:08]} 46. dxe7 {[%emt 0:00:08]} Rxe4 {[%emt 0:00:04]} 0-1